[Event "CZE-ch 2020"]
[Site "Pilsen"]
[Date "2020.08.30"]
[Round "8.10"]
[White "Orsag, Milan"]
[Black "Cerveny, Petr"]
[Result "1-0"]
[ECO "D15"]
[WhiteElo "2300"]
[BlackElo "2340"]
[Annotator "ChessBase"]
[PlyCount "49"]
[EventDate "2020.08.23"]
[EventType "swiss"]
[EventCountry "CZE"]
[SourceTitle "playchess.com"]
[Source "ChessBase"]
[SourceQuality "1"]
[TimeControl "40/5400+30:1800+30"]

1. d4 {[%emt 0:00:00]} d5 {[%emt 0:00:00]} 2. Nf3 {[%emt 0:00:05]} Nf6 {[%emt 0:00:00]} 3. c4 {[%emt 0:00:33]} c6 {[%emt 0:00:00]} 4. Nc3 {[%emt 0:00:51]} a6 {[%emt 0:00:00]} 5. cxd5 {[%emt 0:01:44]} cxd5 {[%emt 0:00:00]} 6. Bf4 {[%emt 0:00:11]} Nc6 {[%emt 0:00:00]} 7. Rc1 {[%emt 0:00:46]} Bf5 {[%emt 0:00:11]} 8. e3 {[%emt 0:00:17]} Rc8 {[%emt 0:00:08]} 9. Be2 {[%emt 0:04:59]} e6 {[%emt 0:00:07]} 10. O-O {[%emt 0:05:13]} Bd6 {[%emt 0:00:31]} 11. Bxd6 {[%emt 0:04:49]} Qxd6 {[%emt 0:00:03]} 12. Qb3 {[%emt 0:00:32]} Rc7 {[%emt 0:01:48]} 13. Na4 {[%emt 0:06:43]} Nd7 {[%emt 0:00:21]} 14. Nc5 {[%emt 0:02:13]} Nxc5 {[%emt 0:01:25]} 15. Rxc5 {[%emt 0:00:46]} O-O {[%emt 0:00:19]} 16. Rfc1 {[%emt 0:00:20]} Bg4 {[%emt 0:00:26]} 17. Qb6 {[%emt 0:02:43]} f5 {[%emt 0:05:33]} 18. Bxa6 {[%emt 0:09:33]} Bxf3 {[%emt 0:02:39]} 19. Bxb7 {[%emt 0:00:49]} Qe7 {[%emt 0:34:12]} 20. Bxc6 {[%emt 0:09:35]} f4 {[%emt 0:35:33]} 21. Bxd5 {[%emt 0:23:28]} Bxd5 {[%emt 0:14:24]} 22. Qxc7 {[%emt 0:00:30]} Qh4 {[%emt 0:00:44]} 23. Qe5 {[%emt 0:05:34]} Bxg2 {[%emt 0:02:25]} 24. Qxe6+ {[%emt 0:00:49]} Kh8 {[%emt 0:00:04]} 25. Rc8 {[%emt 0:00:12]} 1-0

[Event "CZE-ch 2020"]
[Site "Pilsen"]
[Date "2020.08.30"]
[Round "8.11"]
[White "Mladek, Richard"]
[Black "Nemec, Pavel"]
[Result "1-0"]
[ECO "B90"]
[WhiteElo "2280"]
[BlackElo "2243"]
[Annotator "ChessBase"]
[PlyCount "46"]
[EventDate "2020.08.23"]
[EventType "swiss"]
[EventCountry "CZE"]
[SourceTitle "playchess.com"]
[Source "ChessBase"]
[SourceQuality "1"]
[TimeControl "40/5400+30:1800+30"]

1. e4 {[%emt 0:00:00]} c5 {[%emt 0:00:00]} 2. Nf3 {[%emt 0:00:00]} d6 {[%emt 0:00:00]} 3. d4 {[%emt 0:00:00]} cxd4 {[%emt 0:00:00]} 4. Nxd4 {[%emt 0:00:00]} Nf6 {[%emt 0:00:00]} 5. Nc3 {[%emt 0:00:00]} a6 {[%emt 0:00:05]} 6. Bd3 {[%emt 0:00:00]} e5 {[%emt 0:01:17]} 7. Nde2 {[%emt 0:00:00]} Be6 {[%emt 0:01:32]} 8. O-O {[%emt 0:01:01]} Nbd7 {[%emt 0:01:55]} 9. f4 {[%emt 0:06:28]} Qb6+ {[%emt 0:04:26]} 10. Kh1 {[%emt 0:00:16]} Rc8 {[%emt 0:00:13]} 11. b3 {[%emt 0:03:11]} exf4 {[%emt 0:03:55]} 12. Na4 {[%emt 0:04:21]} Qc6 {[%emt 0:04:23]} 13. Nd4 {[%emt 0:02:39]} Qc7 {[%emt 0:00:01]} 14. c4 {[%emt 0:05:01]} g5 {[%emt 0:01:23]} 15. Nc3 {[%emt 0:03:53]} Bg7 {[%emt 0:02:11]} 16. g3 {[%emt 0:01:26]} fxg3 {[%emt 0:07:10]} 17. Bxg5 {[%emt 0:00:52]} Bh3 {[%emt 0:02:59]} 18. hxg3 {[%emt 0:08:46]} Bxf1 {[%emt 0:12:46]} 19. Qxf1 {[%emt 0:00:03]} Qa5 {[%emt 0:00:44]} 20. Nd5 {[%emt 0:12:22]} Nxd5 {[%emt 0:00:52]} 21. Nf5 {[%emt 0:00:07]} Bf6 {[%emt 0:17:14]} 22. Nxd6+ {[%emt 0:05:09]} Kd8 {[%emt 0:01:09]} 23. Nxb7+ {[%emt 0:02:20]} Ke7 1-0

[Event "CZE-ch 2020"]
[Site "Pilsen"]
[Date "2020.08.30"]
[Round "8.13"]
[White "Novotny, Michal"]
[Black "Riha, Vojtech"]
[Result "0-1"]
[ECO "A45"]
[WhiteElo "2246"]
[BlackElo "2270"]
[Annotator "ChessBase"]
[PlyCount "81"]
[EventDate "2020.08.23"]
[EventType "swiss"]
[EventCountry "CZE"]
[SourceTitle "playchess.com"]
[Source "ChessBase"]
[SourceQuality "1"]
[TimeControl "40/5400+30:1800+30"]

1. d4 {[%emt 0:00:00]} Nf6 {[%emt 0:00:00]} 2. Nc3 {[%emt 0:00:00]} d5 {[%emt 0:00:27]} 3. Bf4 {[%emt 0:00:00]} e6 {[%emt 0:04:10]} 4. e3 {[%emt 0:03:50]} a6 {[%emt 0:00:45]} 5. g4 {[%emt 0:00:14]} c5 {[%emt 0:03:31]} 6. g5 {[%emt 0:00:42]} Nfd7 {[%emt 0:02:24]} 7. h4 {[%emt 0:01:45]} Nc6 {[%emt 0:02:18]} 8. Qd2 {[%emt 0:01:41]} b5 {[%emt 0:05:51]} 9. Nf3 {[%emt 0:07:09]} Nb6 {[%emt 0:10:49]} 10. h5 {[%emt 0:25:18]} Bd7 {[%emt 0:09:08]} 11. h6 {[%emt 0:06:32]} g6 {[%emt 0:04:11]} 12. Ne5 {[%emt 0:00:09]} Nxe5 {[%emt 0:07:40]} 13. Bxe5 {[%emt 0:00:16]} Rg8 {[%emt 0:00:06]} 14. Bf6 {[%emt 0:11:29]} Qc7 {[%emt 0:03:44]} 15. dxc5 {[%emt 0:13:55]} Bxc5 {[%emt 0:02:13]} 16. a3 {[%emt 0:03:01]} Rc8 {[%emt 0:04:48]} 17. Rh4 {[%emt 0:00:49]} Bc6 {[%emt 0:03:11]} 18. O-O-O {[%emt 0:05:20]} Nd7 {[%emt 0:02:53]} 19. Bd4 {[%emt 0:01:15]} Be7 {[%emt 0:01:03]} 20. f4 {[%emt 0:07:01]} b4 {[%emt 0:14:46]} 21. axb4 {[%emt 0:01:08]} Bxb4 {[%emt 0:00:07]} 22. Qf2 {[%emt 0:05:20]} Qa5 {[%emt 0:03:33]} 23. Kd2 {[%emt 0:00:10]} Nc5 {[%emt 0:02:46]} 24. Bd3 {[%emt 0:00:43]} Bb5 {[%emt 0:01:28]} 25. Bxc5 {[%emt 0:00:01]} Bxc3+ {[%emt 0:01:11]} 26. bxc3 {[%emt 0:00:21]} Rxc5 {[%emt 0:00:06]} 27. Ke2 {[%emt 0:02:26]} Qxc3 {[%emt 0:00:25]} 28. Kf3 {[%emt 0:00:00]} Ke7 {[%emt 0:01:23]} 29. Rhh1 {[%emt 0:00:49]} Rgc8 {[%emt 0:01:55]} 30. Rd2 {[%emt 0:02:09]} a5 {[%emt 0:03:37]} 31. Rb1 {[%emt 0:00:16]} Bc6 {[%emt 0:02:51]} 32. Rb3 {[%emt 0:00:02]} Qa1 {[%emt 0:00:42]} 33. Rb6 {[%emt 0:01:46]} a4 {[%emt 0:00:48]} 34. Kg3 {[%emt 0:00:01]} a3 {[%emt 0:00:36]} 35. Ra6 {[%emt 0:00:53]} Ra8 {[%emt 0:01:00]} 36. e4 {[%emt 0:00:29]} d4 {[%emt 0:00:24]} 37. f5 {[%emt 0:00:54]} Rxa6 {[%emt 0:01:02]} 38. Bxa6 {[%emt 0:00:14]} a2 {[%emt 0:00:19]} 39. f6+ {[%emt 0:00:46]} Ke8 {[%emt 0:00:24]} 40. Qf4 {[%emt 0:00:18]} Qg1+ {[%emt 0:00:40]} 41. Rg2 {[%emt 0:30:23]} 0-1

[Event "CZE-ch 2020"]
[Site "Pilsen"]
[Date "2020.08.30"]
[Round "8.14"]
[White "Serrano Salvador, Eduardo"]
[Black "Gnojek, Petr"]
[Result "1-0"]
[ECO "A40"]
[WhiteElo "2299"]
[BlackElo "2225"]
[Annotator "ChessBase"]
[PlyCount "67"]
[EventDate "2020.08.23"]
[EventType "swiss"]
[EventCountry "CZE"]
[SourceTitle "playchess.com"]
[Source "ChessBase"]
[SourceQuality "1"]
[TimeControl "40/5400+30:1800+30"]

1. d4 {[%emt 0:02:21]} g6 {[%emt 0:00:00]} 2. Nf3 {[%emt 0:00:16]} Bg7 {[%emt 0:00:00]} 3. g3 {[%emt 0:00:16]} d6 {[%emt 0:00:03]} 4. Bg2 {[%emt 0:00:15]} Nd7 {[%emt 0:00:13]} 5. O-O {[%emt 0:00:15]} e5 {[%emt 0:00:08]} 6. c4 {[%emt 0:01:30]} Ne7 {[%emt 0:00:16]} 7. Nc3 {[%emt 0:02:04]} O-O {[%emt 0:00:29]} 8. d5 {[%emt 0:06:41]} h6 {[%emt 0:10:53]} 9. e4 {[%emt 0:02:04]} f5 {[%emt 0:01:00]} 10. exf5 {[%emt 0:00:13]} gxf5 {[%emt 0:00:46]} 11. Ne1 {[%emt 0:01:17]} Ng6 {[%emt 0:08:20]} 12. Qh5 {[%emt 0:07:12]} Kh7 {[%emt 0:22:58]} 13. Nf3 {[%emt 0:00:31]} f4 {[%emt 0:00:12]} 14. Ne4 {[%emt 0:04:33]} Bf6 {[%emt 0:01:29]} 15. Bh3 {[%emt 0:02:34]} Nc5 {[%emt 0:04:01]} 16. Bxc8 {[%emt 0:03:29]} Rxc8 {[%emt 0:00:05]} 17. Nxc5 {[%emt 0:01:11]} dxc5 {[%emt 0:00:04]} 18. Re1 {[%emt 0:00:26]} Qd7 {[%emt 0:06:12]} 19. Bd2 {[%emt 0:07:52]} Rce8 {[%emt 0:04:29]} 20. Re4 {[%emt 0:01:06]} c6 {[%emt 0:02:30]} 21. dxc6 {[%emt 0:00:49]} Qxc6 {[%emt 0:00:04]} 22. Rae1 {[%emt 0:00:47]} Bg7 {[%emt 0:01:25]} 23. g4 {[%emt 0:05:42]} Re7 {[%emt 0:05:51]} 24. Bc3 {[%emt 0:01:51]} Rfe8 {[%emt 0:02:00]} 25. g5 {[%emt 0:11:54]} b6 {[%emt 0:01:21]} 26. gxh6 {[%emt 0:01:09]} Bxh6 {[%emt 0:00:06]} 27. Bxe5 {[%emt 0:07:37]} Nxe5 {[%emt 0:00:34]} 28. Rxe5 {[%emt 0:00:30]} Rg8+ {[%emt 0:04:24]} 29. Kf1 {[%emt 0:00:28]} Rxe5 {[%emt 0:00:37]} 30. Rxe5 {[%emt 0:00:17]} Qf6 {[%emt 0:09:03]} 31. h4 {[%emt 0:06:24]} Kg7 {[%emt 0:10:18]} 32. Ng5 {[%emt 0:04:00]} Rh8 {[%emt 0:00:28]} 33. Qg4 {[%emt 0:03:40]} Qxe5 {[%emt 0:04:07]} 34. Qd7+ {[%emt 0:00:11]} 1-0

[Event "CZE-ch 2020"]
[Site "Pilsen"]
[Date "2020.08.30"]
[Round "8.16"]
[White "Stalmach, Richard"]
[Black "Vorisek, Jakub"]
[Result "1-0"]
[ECO "D08"]
[WhiteElo "2273"]
[BlackElo "2205"]
[Annotator "ChessBase"]
[PlyCount "69"]
[EventDate "2020.08.23"]
[EventType "swiss"]
[EventCountry "CZE"]
[SourceTitle "playchess.com"]
[Source "ChessBase"]
[SourceQuality "1"]
[TimeControl "40/5400+30:1800+30"]

1. d4 {[%emt 0:00:00]} d5 {[%emt 0:00:00]} 2. c4 {[%emt 0:00:00]} e5 {[%emt 0:00:03]} 3. e3 {[%emt 0:00:52]} exd4 {[%emt 0:03:32]} 4. exd4 {[%emt 0:00:52]} Nf6 {[%emt 0:02:15]} 5. Nc3 {[%emt 0:00:32]} Be7 {[%emt 0:03:14]} 6. Bd3 {[%emt 0:05:22]} dxc4 {[%emt 0:02:43]} 7. Bxc4 {[%emt 0:00:10]} O-O {[%emt 0:00:17]} 8. Nf3 {[%emt 0:01:07]} Bg4 {[%emt 0:03:26]} 9. Be3 {[%emt 0:01:24]} c6 {[%emt 0:03:50]} 10. O-O {[%emt 0:02:17]} Nbd7 {[%emt 0:02:15]} 11. Rc1 {[%emt 0:02:50]} Nb6 {[%emt 0:00:33]} 12. Be2 {[%emt 0:00:16]} Nbd5 {[%emt 0:01:43]} 13. Ne5 {[%emt 0:07:50]} Bxe2 {[%emt 0:02:23]} 14. Qxe2 {[%emt 0:04:43]} Qa5 {[%emt 0:03:29]} 15. Bg5 {[%emt 0:02:30]} Rfe8 {[%emt 0:08:05]} 16. Qf3 {[%emt 0:01:46]} Nxc3 {[%emt 0:09:47]} 17. bxc3 {[%emt 0:02:59]} Qd5 {[%emt 0:02:27]} 18. Bxf6 {[%emt 0:08:31]} Qxf3 {[%emt 0:05:10]} 19. Nxf3 {[%emt 0:00:50]} Bxf6 {[%emt 0:00:07]} 20. Rfe1 {[%emt 0:00:51]} Kf8 {[%emt 0:01:01]} 21. Kf1 {[%emt 0:00:22]} b5 {[%emt 0:05:39]} 22. Re3 {[%emt 0:06:54]} a5 {[%emt 0:14:09]} 23. Ke2 {[%emt 0:00:48]} b4 {[%emt 0:00:14]} 24. Kd3 {[%emt 0:13:03]} c5 {[%emt 0:05:28]} 25. Rxe8+ {[%emt 0:04:07]} Kxe8 {[%emt 0:01:31]} 26. dxc5 {[%emt 0:00:03]} bxc3 {[%emt 0:05:52]} 27. Re1+ {[%emt 0:00:04]} Kf8 {[%emt 0:08:19]} 28. Kc4 {[%emt 0:01:45]} Rb8 {[%emt 0:00:51]} 29. c6 {[%emt 0:01:13]} Rc8 {[%emt 0:01:11]} 30. Kb5 {[%emt 0:01:02]} Bd8 {[%emt 0:00:34]} 31. Ne5 {[%emt 0:03:36]} Bc7 {[%emt 0:02:05]} 32. Nd7+ {[%emt 0:00:26]} Kg8 {[%emt 0:00:07]} 33. Rc1 {[%emt 0:00:55]} Bxh2 {[%emt 0:00:27]} 34. g3 {[%emt 0:00:22]} h5 {[%emt 0:00:16]} 35. Nb6 {[%emt 0:00:15]} 1-0

[Event "CZE-ch 2020"]
[Site "Pilsen"]
[Date "2020.08.30"]
[Round "8.17"]
[White "Flajsman, Pavel"]
[Black "Klement, Lukas"]
[Result "0-1"]
[ECO "E17"]
[WhiteElo "2184"]
[BlackElo "2260"]
[Annotator "ChessBase"]
[PlyCount "60"]
[EventDate "2020.08.23"]
[EventType "swiss"]
[EventCountry "CZE"]
[SourceTitle "playchess.com"]
[Source "ChessBase"]
[SourceQuality "1"]
[TimeControl "40/5400+30:1800+30"]

1. Nf3 {[%emt 0:00:00]} Nf6 {[%emt 0:00:00]} 2. c4 {[%emt 0:00:00]} e6 {[%emt 0:00:00]} 3. g3 {[%emt 0:01:48]} b6 {[%emt 0:00:07]} 4. Bg2 {[%emt 0:00:06]} Bb7 {[%emt 0:00:05]} 5. O-O {[%emt 0:00:04]} Be7 {[%emt 0:00:20]} 6. d4 {[%emt 0:00:31]} O-O {[%emt 0:02:12]} 7. b3 {[%emt 0:07:03]} c5 {[%emt 0:04:37]} 8. dxc5 {[%emt 0:08:22]} bxc5 {[%emt 0:02:14]} 9. Nc3 {[%emt 0:00:45]} Ne4 {[%emt 0:09:32]} 10. Bb2 {[%emt 0:26:48]} f5 {[%emt 0:26:51]} 11. Nxe4 {[%emt 0:14:40]} fxe4 {[%emt 0:09:06]} 12. Ne5 {[%emt 0:07:26]} d5 {[%emt 0:04:21]} 13. Qc2 {[%emt 0:07:21]} Bd6 {[%emt 0:08:40]} 14. f4 {[%emt 0:04:32]} exf3 {[%emt 0:06:43]} 15. exf3 {[%emt 0:00:23]} Bxe5 {[%emt 0:02:05]} 16. Bxe5 {[%emt 0:00:02]} Nc6 {[%emt 0:00:26]} 17. Rae1 {[%emt 0:01:02]} d4 {[%emt 0:01:01]} 18. f4 {[%emt 0:08:07]} Nb4 {[%emt 0:01:03]} 19. Qd2 {[%emt 0:02:08]} Bxg2 {[%emt 0:00:10]} 20. Kxg2 {[%emt 0:00:02]} a5 {[%emt 0:00:45]} 21. g4 {[%emt 0:05:10]} Qd7 {[%emt 0:01:14]} 22. Rf3 {[%emt 0:00:43]} a4 {[%emt 0:04:16]} 23. bxa4 {[%emt 0:00:04]} Qxa4 {[%emt 0:02:52]} 24. a3 {[%emt 0:00:24]} Nc2 {[%emt 0:00:45]} 25. Rc1 {[%emt 0:01:39]} Ne3+ {[%emt 0:00:17]} 26. Rxe3 {[%emt 0:01:07]} dxe3 {[%emt 0:00:06]} 27. Qxe3 {[%emt 0:00:03]} Rfd8 {[%emt 0:01:48]} 28. Qxc5 {[%emt 0:01:31]} Rd2+ {[%emt 0:00:12]} 29. Kh1 {[%emt 0:01:30]} Rad8 {[%emt 0:00:30]} 30. Qe3 {[%emt 0:00:36]} Qa8+ {[%emt 0:00:16]} 0-1

[Event "CZE-ch 2020"]
[Site "Pilsen"]
[Date "2020.08.30"]
[Round "8.18"]
[White "Svanda, Ondrej"]
[Black "Houska, Jiri"]
[Result "1-0"]
[ECO "B76"]
[WhiteElo "2250"]
[BlackElo "2202"]
[Annotator "ChessBase"]
[PlyCount "53"]
[EventDate "2020.08.23"]
[EventType "swiss"]
[EventCountry "CZE"]
[SourceTitle "playchess.com"]
[Source "ChessBase"]
[SourceQuality "1"]
[TimeControl "40/5400+30:1800+30"]

1. e4 {[%emt 0:00:00]} c5 {[%emt 0:00:00]} 2. Nf3 {[%emt 0:00:00]} d6 {[%emt 0:00:00]} 3. d4 {[%emt 0:00:00]} cxd4 {[%emt 0:00:00]} 4. Nxd4 {[%emt 0:00:00]} Nf6 {[%emt 0:00:00]} 5. Nc3 {[%emt 0:00:00]} g6 {[%emt 0:00:00]} 6. Be3 {[%emt 0:00:05]} Bg7 {[%emt 0:00:00]} 7. f3 {[%emt 0:00:04]} O-O {[%emt 0:00:00]} 8. Qd2 {[%emt 0:00:03]} Nc6 {[%emt 0:00:02]} 9. O-O-O {[%emt 0:00:14]} d5 {[%emt 0:00:09]} 10. Qe1 {[%emt 0:00:09]} e5 {[%emt 0:01:27]} 11. Nxc6 {[%emt 0:00:12]} bxc6 {[%emt 0:00:03]} 12. exd5 {[%emt 0:00:06]} Nxd5 {[%emt 0:00:25]} 13. Bc4 {[%emt 0:00:06]} Be6 {[%emt 0:01:05]} 14. Kb1 {[%emt 0:00:16]} Rb8 {[%emt 0:22:13]} 15. Ne4 {[%emt 0:00:15]} Qc7 {[%emt 0:05:00]} 16. Bc5 {[%emt 0:00:31]} Rfd8 {[%emt 0:01:52]} 17. g4 {[%emt 0:00:43]} h6 {[%emt 0:03:59]} 18. Rg1 {[%emt 0:00:24]} f5 {[%emt 0:16:26]} 19. gxf5 {[%emt 0:00:06]} gxf5 {[%emt 0:00:03]} 20. Nf6+ {[%emt 0:01:47]} Kh8 {[%emt 0:06:48]} 21. Nh5 {[%emt 0:06:37]} Bf8 {[%emt 0:01:17]} 22. Bxf8 {[%emt 0:03:16]} Rxf8 {[%emt 0:00:02]} 23. Rg6 {[%emt 0:01:09]} Bg8 {[%emt 0:01:36]} 24. Rxh6+ {[%emt 0:01:33]} Bh7 {[%emt 0:00:04]} 25. f4 {[%emt 0:27:28]} Nxf4 {[%emt 0:06:04]} 26. Rxc6 {[%emt 0:10:00]} Qe7 {[%emt 0:09:19]} 27. Nxf4 {[%emt 0:00:15]} 1-0

[Event "CZE-ch 2020"]
[Site "Pilsen"]
[Date "2020.08.30"]
[Round "8.19"]
[White "Paseka, Matyas"]
[Black "Zeman, Matyas"]
[Result "1/2-1/2"]
[ECO "C03"]
[WhiteElo "1959"]
[BlackElo "2250"]
[Annotator "ChessBase"]
[PlyCount "61"]
[EventDate "2020.08.23"]
[EventType "swiss"]
[EventCountry "CZE"]
[SourceTitle "playchess.com"]
[Source "ChessBase"]
[SourceQuality "1"]
[TimeControl "40/5400+30:1800+30"]

1. e4 {[%emt 0:00:00]} e6 {[%emt 0:00:00]} 2. d4 {[%emt 0:00:00]} d5 {[%emt 0:00:00]} 3. Nd2 {[%emt 0:00:00]} h6 {[%emt 0:00:00]} 4. c3 {[%emt 0:00:42]} c5 {[%emt 0:00:09]} 5. exd5 {[%emt 0:00:21]} exd5 {[%emt 0:00:06]} 6. Ngf3 {[%emt 0:00:50]} Nf6 {[%emt 0:00:23]} 7. Bb5+ {[%emt 0:00:48]} Bd7 {[%emt 0:07:52]} 8. Bxd7+ {[%emt 0:02:08]} Nbxd7 {[%emt 0:00:19]} 9. O-O {[%emt 0:00:19]} Be7 {[%emt 0:00:10]} 10. Re1 {[%emt 0:03:54]} O-O {[%emt 0:00:06]} 11. Nf1 {[%emt 0:03:23]} Re8 {[%emt 0:02:37]} 12. Ne3 {[%emt 0:04:23]} Nf8 {[%emt 0:01:07]} 13. Ne5 {[%emt 0:03:43]} cxd4 {[%emt 0:04:22]} 14. Qxd4 {[%emt 0:06:26]} Ne6 {[%emt 0:00:08]} 15. Qd3 {[%emt 0:00:19]} d4 {[%emt 0:05:47]} 16. Nf5 {[%emt 0:02:21]} dxc3 {[%emt 0:01:17]} 17. Qg3 {[%emt 0:02:25]} Kh7 {[%emt 0:11:04]} 18. Nxf7 {[%emt 0:03:37]} Qd5 {[%emt 0:00:05]} 19. Ne5 {[%emt 0:01:34]} g5 {[%emt 0:00:56]} 20. Qh3 {[%emt 0:07:08]} Bf8 {[%emt 0:00:56]} 21. Nxh6 {[%emt 0:07:42]} Bxh6 {[%emt 0:01:02]} 22. Qf5+ {[%emt 0:00:09]} Kh8 {[%emt 0:00:15]} 23. Qg6 {[%emt 0:25:01]} Bg7 {[%emt 0:01:04]} 24. Nf7+ {[%emt 0:01:25]} Kg8 {[%emt 0:00:03]} 25. Nh6+ {[%emt 0:00:08]} Kh8 {[%emt 0:00:04]} 26. Nf7+ {[%emt 0:00:06]} Kg8 {[%emt 0:00:08]} 27. Nh6+ {[%emt 0:00:17]} Kh8 {[%emt 0:00:04]} 28. Nf7+ {[%emt 0:00:04]} Kg8 {[%emt 0:00:05]} 29. Nh6+ {[%emt 0:00:04]} Kh8 {[%emt 0:00:03]} 30. Nf7+ {[%emt 0:00:05]} Kg8 {[%emt 0:00:05]} 31. Nh6+ {[%emt 0:00:04]} 1/2-1/2

[Event "CZE-ch 2020"]
[Site "Pilsen"]
[Date "2020.08.30"]
[Round "8.22"]
[White "Eret, Jonas"]
[Black "Nytra, Ondrej"]
[Result "1-0"]
[ECO "D02"]
[WhiteElo "2219"]
[BlackElo "1925"]
[Annotator "ChessBase"]
[PlyCount "53"]
[EventDate "2020.08.23"]
[EventType "swiss"]
[EventCountry "CZE"]
[SourceTitle "playchess.com"]
[Source "ChessBase"]
[SourceQuality "1"]
[TimeControl "40/5400+30:1800+30"]

1. d4 {[%emt 0:00:00]} d5 {[%emt 0:00:00]} 2. Nf3 {[%emt 0:00:12]} Nf6 {[%emt 0:00:00]} 3. Bf4 {[%emt 0:00:12]} c5 {[%emt 0:00:00]} 4. e3 {[%emt 0:00:37]} Nc6 {[%emt 0:00:00]} 5. Nbd2 {[%emt 0:03:56]} Qb6 {[%emt 0:04:06]} 6. dxc5 {[%emt 0:00:54]} Qxb2 {[%emt 0:02:31]} 7. Rb1 {[%emt 0:09:54]} Qc3 {[%emt 0:02:21]} 8. Bb5 {[%emt 0:03:12]} Bd7 {[%emt 0:01:25]} 9. O-O {[%emt 0:01:38]} Qxc5 {[%emt 0:02:22]} 10. c4 {[%emt 0:01:29]} e6 {[%emt 0:05:34]} 11. Qe2 {[%emt 0:08:24]} Be7 {[%emt 0:05:13]} 12. Rfc1 {[%emt 0:00:58]} Qa3 {[%emt 0:01:56]} 13. cxd5 {[%emt 0:07:01]} exd5 {[%emt 0:04:04]} 14. e4 {[%emt 0:05:28]} O-O {[%emt 0:04:31]} 15. e5 {[%emt 0:02:19]} Nh5 {[%emt 0:02:22]} 16. Be3 {[%emt 0:01:10]} Bf5 {[%emt 0:01:50]} 17. Bxc6 {[%emt 0:03:15]} bxc6 {[%emt 0:01:46]} 18. Nd4 {[%emt 0:00:14]} Bg6 {[%emt 0:21:31]} 19. g4 {[%emt 0:08:00]} Rfc8 {[%emt 0:14:46]} 20. gxh5 {[%emt 0:03:47]} Bxb1 {[%emt 0:00:36]} 21. Nxb1 {[%emt 0:00:41]} Qb4 {[%emt 0:00:21]} 22. a3 {[%emt 0:03:41]} Qa4 {[%emt 0:04:47]} 23. Qg4 {[%emt 0:03:46]} c5 {[%emt 0:03:06]} 24. Nc3 {[%emt 0:00:33]} Qxd4 {[%emt 0:12:46]} 25. Bxd4 {[%emt 0:00:19]} cxd4 {[%emt 0:00:03]} 26. h6 {[%emt 0:01:13]} g6 {[%emt 0:01:41]} 27. Ne2 {[%emt 0:01:21]} 1-0

[Event "CZE-ch 2020"]
[Site "Pilsen"]
[Date "2020.08.30"]
[Round "8.23"]
[White "Hlozek, David"]
[Black "Pychova, Nela"]
[Result "0-1"]
[ECO "B32"]
[WhiteElo "2037"]
[BlackElo "2159"]
[Annotator "ChessBase"]
[PlyCount "66"]
[EventDate "2020.08.23"]
[EventType "swiss"]
[EventCountry "CZE"]
[SourceTitle "playchess.com"]
[Source "ChessBase"]
[SourceQuality "1"]
[TimeControl "40/5400+30:1800+30"]

1. e4 {[%emt 0:00:00]} c5 {[%emt 0:00:00]} 2. Nf3 {[%emt 0:00:00]} Nc6 {[%emt 0:00:00]} 3. d4 {[%emt 0:00:00]} cxd4 {[%emt 0:00:00]} 4. Nxd4 {[%emt 0:00:00]} e5 {[%emt 0:00:04]} 5. Nb5 {[%emt 0:00:32]} a6 {[%emt 0:00:09]} 6. Nd6+ {[%emt 0:00:24]} Bxd6 {[%emt 0:00:07]} 7. Qxd6 {[%emt 0:00:03]} Qf6 {[%emt 0:00:22]} 8. Qxf6 {[%emt 0:03:21]} Nxf6 {[%emt 0:00:22]} 9. f3 {[%emt 0:00:39]} d5 {[%emt 0:06:23]} 10. exd5 {[%emt 0:06:23]} Nxd5 {[%emt 0:07:17]} 11. Bd2 {[%emt 0:08:16]} Bf5 {[%emt 0:04:35]} 12. Na3 {[%emt 0:05:44]} Ndb4 {[%emt 0:02:39]} 13. c3 {[%emt 0:03:17]} Nd3+ {[%emt 0:03:34]} 14. Bxd3 {[%emt 0:00:05]} Bxd3 {[%emt 0:00:08]} 15. Kf2 {[%emt 0:02:02]} O-O-O {[%emt 0:10:00]} 16. Rac1 {[%emt 0:06:36]} f5 {[%emt 0:08:11]} 17. b4 {[%emt 0:09:01]} f4 {[%emt 0:04:59]} 18. c4 {[%emt 0:09:14]} Rhe8 {[%emt 0:10:13]} 19. b5 {[%emt 0:13:29]} Nd4 {[%emt 0:01:31]} 20. bxa6 {[%emt 0:03:23]} bxa6 {[%emt 0:00:14]} 21. Rhe1 {[%emt 0:06:26]} g5 {[%emt 0:04:02]} 22. Ba5 {[%emt 0:05:34]} Rd7 {[%emt 0:00:39]} 23. c5 {[%emt 0:02:32]} Nc6 {[%emt 0:02:43]} 24. Bb6 {[%emt 0:03:29]} Rd4 {[%emt 0:05:42]} 25. Rc3 {[%emt 0:01:41]} Re7 {[%emt 0:01:51]} 26. Rd1 {[%emt 0:02:31]} Red7 {[%emt 0:02:11]} 27. Rd2 {[%emt 0:01:45]} h5 {[%emt 0:05:12]} 28. Rb2 {[%emt 0:01:03]} g4 {[%emt 0:03:38]} 29. Rc1 {[%emt 0:03:49]} h4 {[%emt 0:07:53]} 30. fxg4 {[%emt 0:00:27]} e4 {[%emt 0:00:17]} 31. g3 {[%emt 0:00:57]} e3+ {[%emt 0:02:37]} 32. Kg2 {[%emt 0:00:17]} Be4+ {[%emt 0:00:40]} 33. Kf1 {[%emt 0:00:25]} f3 {[%emt 0:00:20]} 0-1